bitfinex-derivatives/quotes_ETHF0:USTF0_20250205
["timestamp","ask_amount","ask_price","bid_price","bid_amount"]
[1738779122494,3.2078,2745.1,2744.9,0.00546279]
[1738779122693,3.2078,2745.1,2744.5,0.8978]
[1738779122993,3.2078,2744.7,2744.5,0.8978]
[1738779123290,3.2078,2744.7,2744.1,4.0624]
[1738779123493,3.2078,2744.4,2743.5,0.8978]
[1738779124089,4.28310596,2744.2,2743.7,0.00546279]
[1738779124392,5.01174596,2744.2,2743.7,0.00546279]
[1738779124697,3.2078,2744.1,2743.7,0.00546279]
[1738779125193,3.2078,2743.8,2743.7,0.00546279]
[1738779125397,9.03744317,2743.8,2743.7,0.00546279]
[1738779125590,9.03744317,2743.8,2742.9,1.7738]
[1738779125787,3.2078,2743.5,2742.9,0.9203]
[1738779125994,4.27764317,2743.4,2742.3,3.2078]
[1738779126297,3.2078,2743.2,2742.3,3.2078]
[1738779126897,3.2078,2743.2,2742.5,0.00546279]
[1738779127199,7.48544317,2742.6,2742.5,0.00546279]
[1738779127493,7.48544317,2742.6,2741.0,3.2078]
[1738779127794,7.48544317,2741.8,2741.0,3.2078]
[1738779128000,4.27764317,2741.4,2741.0,3.2078]
[1738779128296,0.72949,2741.0,2740.1,0.8816]
[1738779128592,0.72949,2741.0,2740.0,10.0]
[1738779128593,7.48544317,2740.4,2740.0,10.0]
[1738779128789,3.2078,2740.1,2740.0,10.0]
[1738779128989,3.2078,2740.1,2739.6,11.32559498]
[1738779129191,3.2078,2739.8,2739.6,11.32559498]
[1738779129391,3.2078,2739.8,2738.7,0.8816]
[1738779129594,8.2078,2739.8,2737.6,3.2078]
[1738779129799,4.27764317,2740.0,2737.5,8.49419624]
[1738779129800,3.2078,2738.2,2737.5,8.49419624]
[1738779129997,7.48544317,2737.7,2737.5,8.49419624]
[1738779130302,3.2078,2738.0,2737.5,8.49419624]
[1738779131102,3.21327295,2738.0,2737.5,8.49966919]
[1738779131302,0.00547295,2738.0,2737.5,11.70746919]
[1738779131600,3.21327295,2738.0,2737.5,11.70746919]
[1738779132599,0.00547295,2738.0,2737.8,3.2078]
[1738779132904,0.00547295,2738.0,2737.5,11.70746919]
[1738779133101,0.00547295,2738.0,2737.2,14.15699373]
[1738779133102,3.2078,2737.6,2736.5,3.2078]
[1738779133310,3.2078,2737.3,2736.3,2.6599]
[1738779133604,0.00547295,2738.0,2736.9,3.2078]
[1738779133605,3.2078,2737.9,2736.9,3.2078]
[1738779133799,3.2078,2737.5,2736.5,3.2078]
[1738779134005,3.2078,2737.2,2736.5,3.2078]
[1738779134203,0.00547295,2738.0,2736.3,0.9148]
[1738779134204,3.2078,2736.9,2736.3,0.9148]
[1738779134601,3.2078,2736.9,2736.2,3.2078]
[1738779134602,7.48544317,2736.9,2736.6,0.00365208]
[1738779134802,3.2078,2736.9,2736.6,0.00365208]
[1738779135006,4.27764317,2737.3,2736.7,3.2078]
[1738779135197,4.27764317,2737.3,2736.6,0.00365208]
[1738779135198,3.2078,2737.4,2736.8,3.2078]
[1738779135403,3.2078,2737.4,2736.6,0.00365208]
[1738779135598,3.2078,2737.4,2736.6,3.21145208]
[1738779135808,5.87864317,2737.7,2736.7,40.8]
[1738779135809,3.2078,2737.1,2736.7,40.8]
[1738779136003,3.2078,2737.4,2736.7,40.8]
[1738779137102,5.87864317,2737.7,2736.7,40.8]
[1738779137103,4.8088,2737.7,2737.0,3.2078]
[1738779137411,3.2078,2737.4,2736.8,3.2078]
[1738779137815,3.2078,2737.4,2736.7,40.8]
[1738779138005,3.2078,2737.1,2736.6,0.00365208]
[1738779138199,4.27764317,2736.9,2736.6,0.00365208]
[1738779138414,3.2078,2736.8,2736.6,0.00365208]
[1738779138706,1.598,2736.7,2735.3,0.8811]
[1738779139014,3.2078,2736.2,2735.3,0.8811]
[1738779139313,3.2078,2736.2,2735.6,3.2078]
[1738779139609,3.2078,2735.8,2735.1,3.2078]
[1738779140010,0.00547295,2736.2,2735.4,3.2078]
[1738779140310,3.2078,2736.1,2735.0,3.2078]
[1738779140708,0.00547295,2736.2,2735.9,3.2078]
[1738779141312,3.2078,2737.1,2736.0,0.8651]
[1738779141509,3.2078,2737.1,2736.3,3.2078]
[1738779141709,3.2078,2737.1,2736.4,3.2078]
[1738779141904,4.27764317,2737.3,2736.8,3.2078]
[1738779142411,3.2078,2737.5,2736.8,3.2078]
[1738779142610,0.00548326,2737.3,2736.8,3.21328326]
[1738779144810,4.28312643,2737.3,2736.8,0.00548326]
[1738779145004,7.48544317,2736.9,2736.8,0.00548326]
[1738779145208,7.48544317,2736.9,2736.0,4.0729]
[1738779145414,4.27764317,2736.9,2736.0,4.0729]
[1738779145911,3.2078,2736.7,2736.0,4.0729]
[1738779146112,3.2078,2736.4,2736.0,0.8651]
[1738779146511,3.2078,2736.4,2735.7,3.2078]
[1738779147013,4.27764317,2736.1,2735.7,3.2078]
[1738779147209,4.27764317,2736.1,2735.7,1.57301843]
[1738779147517,3.2078,2735.8,2734.7,3.2078]
[1738779147717,3.2078,2735.4,2734.7,3.2078]
[1738779148405,0.00548326,2735.3,2734.7,3.2078]
[1738779148804,7.48544317,2735.1,2734.7,3.2078]
[1738779149518,3.2078,2735.1,2734.7,3.2078]
[1738779151010,0.00548326,2735.3,2735.0,3.2078]
[1738779151515,4.27764317,2736.3,2735.1,0.73104]
[1738779151816,4.27764317,2736.3,2735.2,3.2078]
[1738779152411,3.2078,2736.1,2735.2,3.2078]
[1738779152812,0.00548326,2736.0,2735.5,0.00548326]
[1738779154118,3.2078,2735.8,2735.5,0.00548326]
[1738779156321,0.00548326,2736.0,2735.5,0.00548326]
[1738779157210,4.27764317,2735.9,2735.5,0.00548326]
[1738779157411,3.2078,2735.8,2735.5,0.00548326]
[1738779158218,3.2078,2735.8,2734.8,3.2078]
[1738779158525,3.2078,2735.5,2734.3,4.76703696]
[1738779158815,3.2078,2734.8,2734.4,0.55108847]
[1738779159122,3.2078,2734.8,2734.2,5.9028]
[1738779159123,3.2078,2734.8,2734.2,4.9941]
[1738779159323,3.2078,2734.8,2734.3,0.55209733]
[1738779159619,1.586,2735.2,2734.3,0.55209733]
[1738779159620,3.2078,2735.2,2734.4,0.55189143]
[1738779159820,3.2078,2735.2,2734.2,4.9941]
[1738779160021,4.27764317,2735.1,2734.3,0.55189036]
[1738779160221,3.2078,2734.9,2734.2,4.9941]
[1738779160418,3.2078,2734.9,2734.3,0.55176382]
[1738779160619,3.2078,2734.9,2734.2,4.9941]
[1738779160816,3.2078,2734.9,2734.3,0.5517671]
[1738779161022,3.2078,2734.9,2734.2,4.1128]
[1738779161226,3.2078,2735.2,2734.6,3.2078]
[1738779161423,7.48544317,2735.5,2734.7,0.55190326]
[1738779161623,3.2078,2735.2,2734.6,3.2078]
[1738779161924,3.2078,2735.2,2734.7,0.55190265]
[1738779162127,3.2078,2735.2,2734.6,3.2078]
[1738779162325,3.2078,2735.2,2734.7,0.55216882]
[1738779162520,3.2078,2735.2,2734.3,3.2078]
[1738779162723,3.2078,2734.9,2734.4,0.55218493]
[1738779162917,3.93898,2734.6,2733.6,0.9587]
[1738779163117,7.48544317,2734.3,2733.7,0.55226603]
[1738779163424,4.27764317,2733.9,2732.8,3.2078]
[1738779163621,3.2078,2734.0,2733.4,3.2078]
[1738779163622,4.7998,2734.0,2733.4,3.2078]
[1738779163922,4.7998,2734.0,2732.9,8.06974409]
[1738779164120,4.7998,2734.0,2733.0,0.55199442]
[1738779164315,4.7998,2734.0,2733.1,0.55199442]
[1738779164516,4.7998,2734.0,2733.2,0.55199442]
[1738779164713,4.7998,2734.0,2733.3,0.55161041]
[1738779164914,4.7998,2734.0,2732.9,3.2078]
[1738779164915,4.27764317,2733.9,2732.7,3.2078]
[1738779165117,4.27764317,2733.9,2732.8,0.55162572]
[1738779165316,3.2078,2733.3,2732.7,3.2078]
[1738779165516,4.27764317,2733.1,2732.7,3.2078]
[1738779165919,4.27764317,2733.5,2732.7,3.2078]
[1738779166223,4.27764317,2733.5,2731.9,41.7442]
[1738779166224,3.2078,2733.9,2732.9,3.2078]
[1738779166426,4.8028,2734.2,2733.4,3.2078]
[1738779166823,4.8028,2734.2,2733.5,0.55087118]
[1738779167027,4.8028,2734.2,2733.4,3.2078]
[1738779167229,4.8028,2734.2,2733.0,7.36762169]
[1738779167230,0.00548326,2734.3,2734.1,3.2078]
[1738779167525,0.00548326,2734.3,2733.7,3.2078]
[1738779167825,0.00548326,2734.3,2734.1,3.2078]
[1738779168023,1.595,2734.9,2734.2,0.55102018]
[1738779168220,3.2078,2735.2,2734.3,0.55097067]
[1738779168528,3.2078,2735.2,2734.6,3.2078]
[1738779168722,3.2078,2735.2,2734.2,6.6817595]
[1738779168723,4.27764317,2735.1,2734.2,5.0418]
[1738779168922,4.27764317,2735.1,2734.3,0.55108157]
[1738779169123,4.27764317,2735.1,2734.2,1.834]
[1738779169328,0.00548326,2735.0,2734.4,0.00548326]
[1738779172627,0.00548326,2735.0,2734.9,3.2078]
[1738779172827,0.00548326,2735.0,2734.6,3.2078]
[1738779174619,3.21328326,2735.0,2734.5,0.9392]
[1738779175031,3.2078,2734.7,2734.5,0.9392]
[1738779175452,7.48544317,2734.7,2733.9,3.2078]
[1738779175736,4.27764317,2734.3,2733.4,0.8947]
[1738779175927,0.73131,2734.2,2733.4,0.8947]
[1738779176135,3.2078,2733.8,2733.4,0.8947]
[1738779177739,3.2078,2734.2,2733.4,0.8947]
[1738779178339,4.53496704,2734.3,2733.4,0.8947]
[1738779178340,3.2078,2734.1,2733.4,0.8947]
[1738779178836,3.2078,2733.8,2733.4,0.8947]
[1738779179040,3.2078,2734.1,2733.4,0.8947]
[1738779180138,3.2078,2733.7,2732.9,3.2078]
[1738779180536,0.00548326,2733.6,2732.9,3.2078]
[1738779180943,4.27764317,2733.1,2732.7,0.01445]
[1738779181135,3.2078,2733.0,2732.7,0.01445]
[1738779181740,4.27764317,2733.5,2732.7,0.01445]
[1738779182440,2.56094,2732.7,2731.1,8.49419624]
[1738779182642,4.27764317,2731.2,2731.1,8.49419624]
[1738779182836,7.48544317,2731.2,2730.3,19.81979122]
[1738779183031,0.73231,2730.4,2730.3,12.56397371]
[1738779183231,7.48544317,2730.5,2730.1,16.88180547]
[1738779183436,4.27764317,2730.5,2730.1,1.50074092]
[1738779183637,3.2078,2730.4,2729.9,62.95652661]
[1738779183841,4.27764317,2730.0,2729.9,51.22880232]
[1738779184039,4.27764317,2730.0,2729.6,3.2078]
[1738779184238,3.2078,2729.8,2728.5,3.2078]
[1738779184541,3.2078,2730.2,2729.5,3.2078]
[1738779184743,3.2078,2729.9,2729.5,11.72772429]
[1738779185043,5.56627162,2731.0,2728.6,40.8]
[1738779185044,3.2078,2729.6,2728.9,3.2078]
[1738779185232,4.27764317,2730.0,2729.2,11.72772429]
[1738779185233,5.0438,2729.9,2729.2,11.72772429]
[1738779185433,5.0438,2729.9,2728.6,44.0078]
[1738779185635,4.27764317,2729.4,2728.5,3.2078]
[1738779185844,3.2078,2729.7,2729.1,17.44453457]
[1738779186044,0.0054938,2730.1,2729.1,14.23673457]
[1738779186045,3.2078,2729.5,2729.1,14.23673457]
[1738779186248,0.0054938,2729.7,2729.3,3.2078]
[1738779186437,5.1098,2730.6,2729.6,3.2078]
[1738779186639,5.1098,2730.6,2729.1,14.23673457]
[1738779186640,3.2078,2730.4,2729.1,14.23673457]
[1738779186838,7.48544317,2730.4,2729.2,3.2078]
[1738779187043,7.48544317,2730.4,2729.8,3.2078]
[1738779187237,3.2078,2730.7,2729.8,3.2078]
[1738779187440,5.1338,2731.0,2730.4,3.2078]
[1738779187643,3.2078,2732.0,2730.8,3.2078]
[1738779187946,16.913,2733.7,2730.5,4.74168499]
[1738779187947,0.0054938,2731.0,2730.5,4.74168499]
[1738779188247,0.07320912,2731.9,2731.1,0.0054938]
[1738779188545,0.07320912,2731.9,2731.8,3.2078]
[1738779188951,5.07320912,2731.9,2731.1,0.0054938]
[1738779189245,0.07320912,2731.9,2731.1,0.0054938]
[1738779189546,3.2078,2731.4,2731.1,0.0054938]
[1738779189757,4.27764317,2731.6,2731.1,0.0054938]
[1738779190055,3.2078,2731.2,2731.1,0.0054938]
[1738779190551,3.2078,2731.2,2730.3,3.2078]
[1738779190749,3.2078,2731.6,2730.7,3.2078]
[1738779191247,3.2078,2730.8,2730.1,1.793]
[1738779191440,3.2078,2730.2,2730.1,1.793]
[1738779191646,3.2078,2730.5,2730.1,1.793]
[1738779191851,1.932,2731.8,2730.1,1.793]
[1738779191852,0.0054938,2730.4,2730.1,1.793]
[1738779192148,0.0054938,2730.4,2730.1,0.8756]
[1738779192449,0.0054938,2730.4,2730.0,3.2078]
[1738779192852,0.0054938,2730.4,2729.9,4.78318298]
[1738779193148,0.0054938,2730.4,2729.6,8.07000171]
[1738779193350,0.0054938,2730.4,2729.6,4.86220171]
[1738779193650,3.2132938,2730.4,2729.6,4.86220171]
[1738779193946,3.2132938,2730.4,2728.9,0.23071454]
[1738779193947,3.2078,2729.7,2728.9,0.23071454]
[1738779194346,3.2078,2729.7,2729.2,4.8360006]
[1738779194549,3.2078,2729.7,2729.0,4.8360006]
[1738779194748,3.2078,2729.8,2729.1,3.2078]
[1738779194953,3.2078,2730.1,2729.4,3.2078]
[1738779195153,3.2078,2730.1,2729.4,8.21801317]
[1738779195350,25.59241278,2730.3,2729.8,3.2078]
[1738779195653,25.59241278,2730.3,2729.9,4.27764317]
[1738779195853,25.59241278,2730.3,2729.9,4.68231912]
[1738779196051,8.29463738,2730.1,2729.5,6.04324317]
[1738779196247,3.2078,2730.0,2729.1,4.27764317]
[1738779196448,8.29463738,2730.1,2729.6,4.71180304]
[1738779196643,3.2078,2730.0,2729.2,5.44441304]
[1738779196849,8.29463738,2730.1,2729.5,4.27764317]
[1738779197251,3.2078,2730.0,2729.6,4.79146017]
[1738779197456,8.29463738,2730.1,2729.5,5.01018317]
[1738779197746,1.85930222,2729.8,2729.7,4.79146017]
[1738779197949,1.85930222,2729.8,2729.7,5.52395017]
[1738779198152,1.85930222,2729.8,2729.7,8.94029]
[1738779198342,10.18121607,2730.0,2729.7,12.37867963]
[1738779198548,7.29441607,2730.0,2729.9,5.01008317]
[1738779198744,5.73481607,2730.0,2729.9,5.01008317]
[1738779198950,4.29141607,2730.0,2729.9,14.72520222]
[1738779199158,2.84791607,2730.0,2729.9,14.72520222]
[1738779199663,6.90412777,2730.1,2730.0,0.73241]
[1738779199850,0.0054938,2730.4,2730.0,8.2078]
[1738779200164,6.90522174,2730.9,2730.4,1.83071]
[1738779200458,5.06539242,2730.9,2730.8,8.21764317]
[1738779200653,4.29074242,2730.9,2730.8,8.21764317]
[1738779200851,4.29074242,2730.9,2730.8,22.57666727]
[1738779201154,4.29074242,2730.9,2730.8,6.42101406]
[1738779201346,4.29074242,2730.9,2730.8,7.15321406]
[1738779201553,7.49854242,2730.9,2730.6,0.0054938]
[1738779202060,7.49854242,2730.9,2730.7,4.81714886]
[1738779202260,7.49854242,2730.9,2730.6,0.0054938]
[1738779202453,7.49854242,2730.9,2730.7,4.70991307]
[1738779202752,4.29074242,2730.9,2730.8,0.7322]
[1738779202957,4.29074242,2730.9,2730.7,4.70991307]
[1738779203355,3.2078,2731.0,2730.6,0.0054938]
[1738779203564,3.2078,2730.7,2730.6,0.7377438]
[1738779204056,3.2078,2730.7,2730.6,10.43946729]
[1738779204264,0.0054938,2731.1,2730.6,9.70722729]
[1738779204454,0.0054938,2731.1,2730.6,4.70722729]
[1738779204855,3.2078,2730.8,2730.6,4.70722729]
[1738779206553,3.2078,2730.8,2730.2,16.917]
[1738779206756,3.2078,2730.3,2730.2,16.917]
[1738779206961,3.2078,2730.3,2729.5,7.48544317]
[1738779207167,3.2078,2730.0,2729.5,4.64404317]
[1738779207553,3.2078,2730.0,2729.5,5.37658317]
[1738779207756,3.2078,2730.0,2729.5,4.64404317]
[1738779207960,3.2078,2730.9,2730.4,0.73228]
[1738779208161,3.2078,2730.9,2730.1,0.73238]
[1738779208366,3.2078,2730.9,2729.9,4.27764317]
[1738779208367,3.2078,2730.9,2730.5,4.85357829]
[1738779208557,3.2078,2730.9,2730.6,0.73224]
[1738779208760,3.2078,2730.9,2730.3,0.73232]
[1738779208957,3.2078,2730.6,2730.3,4.27764317]
[1738779209269,3.2078,2730.6,2730.5,0.73228]
[1738779209560,2.76766609,2731.0,2730.5,4.84949731]
[1738779209756,2.76766609,2730.7,2730.5,4.84949731]
[1738779209954,2.76766609,2730.7,2730.5,0.73226]
[1738779210160,2.76766609,2730.7,2730.4,4.84949731]
[1738779210362,3.2078,2730.5,2729.8,4.27764317]
[1738779210764,3.2078,2730.5,2730.1,4.86034908]
[1738779211061,3.2078,2730.5,2729.8,4.27764317]
[1738779211260,2.01480629,2730.7,2730.2,9.11708745]
[1738779211464,0.0054938,2731.1,2731.0,0.73214]
[1738779211869,0.0054938,2731.1,2731.0,10.57158428]
[1738779212159,0.0054938,2731.1,2731.0,50.63944428]
[1738779212364,0.0054938,2731.1,2730.4,4.27764317]
[1738779212661,3.2078,2730.7,2730.5,4.77656298]
[1738779212966,3.2078,2730.7,2730.1,40.8]
[1738779213169,3.2078,2730.7,2730.1,4.77656298]
[1738779213358,3.2078,2730.7,2730.6,4.81507843]
[1738779213564,3.2078,2730.7,2730.4,0.73229]
[1738779213759,3.2078,2730.7,2730.5,0.73227]
[1738779213967,3.2078,2730.7,2730.5,4.81507843]
[1738779214165,3.2078,2730.7,2730.0,4.27764317]
[1738779214363,3.2078,2730.4,2729.6,7.48544317]
[1738779214561,3.2078,2730.4,2727.8,36.64995]
[1738779214562,3.2078,2730.0,2729.1,4.27764317]
[1738779214766,3.2078,2729.4,2728.3,4.27764317]
[1738779214970,3.2078,2728.7,2727.9,5.01060317]
[1738779215169,3.2078,2728.7,2728.4,4.70067278]
[1738779215367,0.0054938,2728.6,2728.4,4.70067278]
[1738779215667,0.0054938,2728.6,2728.5,4.70067278]
[1738779216070,0.0054938,2728.6,2728.4,4.70067278]
[1738779216259,0.0054938,2728.6,2728.0,0.3672]
[1738779216466,0.0054938,2728.6,2727.9,4.27764317]
[1738779216467,3.2078,2728.1,2727.7,0.3672]
[1738779216662,3.2078,2728.1,2727.7,1.10023]
[1738779216865,3.2078,2728.1,2728.0,4.85015687]
[1738779217167,3.2078,2728.1,2727.8,0.3672]
[1738779217370,3.2078,2728.1,2728.0,4.74823725]
[1738779217568,3.2078,2728.1,2727.9,4.74823725]
[1738779217774,3.2078,2728.4,2728.3,0.73287]
[1738779217977,3.2078,2728.4,2728.0,9.02588042]
[1738779218167,3.2078,2728.4,2728.3,4.68887978]
[1738779218369,3.2078,2728.4,2727.8,0.3672]
[1738779218671,0.0054938,2728.6,2728.0,4.68887978]
[1738779218871,9.97744557,2728.1,2728.0,4.68887978]
[1738779219073,9.97744557,2728.1,2727.3,0.3672]
[1738779219273,0.0054938,2728.6,2728.0,5.50403979]
[1738779219468,3.8e-06,2728.6,2728.5,0.73282]
[1738779219667,3.2078,2729.7,2728.5,7.48544317]
[1738779219869,3.2078,2729.0,2728.6,0.73277]
[1738779220064,3.2078,2729.3,2728.7,40.8]
[1738779220370,3.2078,2729.0,2728.7,45.54310375]
[1738779220677,3.2078,2729.0,2728.1,4.27764317]
[1738779220864,3.2078,2730.8,2728.9,3.2078]
[1738779221064,3.2078,2730.1,2729.6,0.7325]
[1738779221364,6.76964557,2729.6,2729.0,12.76277051]
[1738779221668,3.2078,2729.7,2729.5,4.85852504]
[1738779222075,6.76964557,2729.6,2729.3,0.0054938]
[1738779222271,9.97744557,2729.4,2729.3,0.0054938]
[1738779222471,3.2078,2729.4,2729.3,0.0054938]
[1738779222671,3.2078,2729.4,2729.3,4.75509243]
[1738779222867,3.2078,2729.7,2729.3,4.75509243]
[1738779223071,6.76964557,2729.6,2729.3,4.75509243]
[1738779223271,9.97744557,2729.4,2729.3,0.0054938]
[1738779223671,14.97744557,2729.4,2728.5,3.94061]
[1738779223885,3.2078,2729.2,2728.5,3.2078]
[1738779224171,3.2078,2729.6,2729.4,0.73257]
[1738779224370,3.2078,2729.6,2728.9,4.27764317]
[1738779224571,3.2078,2729.6,2729.5,5.42207459]
[1738779224779,0.9175938,2729.9,2729.6,0.73252]
[1738779224978,6.76964557,2729.4,2729.1,4.41414889]
[1738779225175,3.2078,2729.2,2728.8,0.73273]
[1738779225567,6.97870908,2729.7,2728.5,7.48544317]
[1738779225568,3.2078,2728.9,2728.5,4.27764317]
[1738779225767,3.2078,2728.9,2727.9,0.3664]
[1738779225768,9.97744557,2728.6,2727.7,4.27764317]
[1738779225970,4.27764317,2729.6,2727.3,3.2078]
[1738779225971,6.76964557,2728.1,2727.3,5.01076317]
[1738779226179,6.76964557,2728.1,2727.8,4.80195261]
[1738779226375,3.2132938,2728.0,2727.8,4.80195261]
[1738779226680,3.2132938,2728.0,2727.7,4.80195261]
[1738779226975,3.2132938,2728.0,2727.9,4.80195261]
[1738779227173,3.2132938,2728.0,2727.0,18.27464305]
[1738779227372,3.2078,2727.5,2727.0,0.62642305]
[1738779227574,3.2078,2727.5,2727.1,4.69532839]
[1738779227781,3.2078,2727.2,2727.0,0.62642305]
[1738779227984,6.76964557,2727.3,2727.0,0.62642305]
[1738779228184,9.97744557,2727.1,2726.2,0.0074804]
[1738779228476,6.76964557,2726.3,2724.9,11.67468031]
[1738779228676,3.2078,2725.9,2725.1,4.28582451]
[1738779228872,3.2078,2725.7,2725.2,3.2078]
[1738779229077,6.76964557,2725.6,2725.2,3.2078]
[1738779229277,0.0054938,2725.8,2725.3,0.73367]
[1738779229476,0.0054938,2725.8,2725.2,9.11101879]
[1738779229675,5.0054938,2725.8,2725.4,4.83337562]
[1738779229879,0.0054938,2725.8,2725.7,3.94137]
[1738779230174,0.0054938,2725.8,2725.5,7.91279458]
[1738779230371,9.97744557,2725.7,2725.2,3.2078]
[1738779230576,3.2078,2725.5,2725.1,0.00818134]
[1738779230781,3.2078,2725.6,2725.1,0.00818134]
[1738779231080,0.0054938,2725.8,2725.5,3.2078]
[1738779231582,5.0054938,2725.8,2725.6,4.72176142]
[1738779231877,0.0054938,2725.8,2725.7,0.73357]
[1738779232079,0.0054938,2725.8,2725.6,4.72176142]
[1738779232281,0.0054938,2725.8,2725.7,4.75609641]
[1738779232478,0.0054938,2725.8,2725.7,8.64452811]
[1738779232675,0.0054938,2725.8,2725.7,54.44452811]
[1738779232877,4.0796,2727.1,2725.7,62.74469769]
[1738779233180,1.981,2728.4,2725.7,62.74469769]
[1738779233181,3.2078,2727.5,2726.8,3.2078]
[1738779233476,6.76964557,2727.2,2726.3,3.2078]
[1738779233677,6.76964557,2727.2,2726.3,3.94119]
[1738779233879,6.76964557,2727.2,2726.3,8.76817493]
[1738779234072,0.00550398,2727.0,2726.6,0.73333]
[1738779234274,0.00550398,2727.0,2726.5,0.00550398]
[1738779234475,9.97744557,2726.6,2726.5,0.00550398]
[1738779234672,9.97744557,2726.6,2725.5,11.30748031]
[1738779234875,3.2078,2725.8,2725.5,11.30748031]
[1738779235184,6.76964557,2725.6,2725.5,11.30748031]
[1738779235685,11.76964557,2725.6,2725.5,9.86468031]
[1738779236781,11.76964557,2725.6,2725.5,2.73817089]
[1738779238894,5.0,2725.6,2725.5,2.73817089]
[1738779239092,2.9046,2726.5,2725.5,7.47090036]
[1738779239093,4.1324,2726.5,2725.5,7.47090036]
[1738779239281,6.76964557,2725.9,2725.5,7.47090036]
[1738779239486,9.97744557,2725.9,2725.6,40.8]
[1738779239680,5.58901376,2725.7,2725.6,40.8]
[1738779240187,10.58901376,2725.7,2725.6,45.49519589]
[1738779240784,5.58901376,2725.7,2725.6,46.22879589]
[1738779241076,5.58901376,2725.7,2725.6,45.49519589]
[1738779241277,10.58901376,2725.7,2725.1,0.00818134]
[1738779241483,9.97744557,2725.3,2725.1,0.00818134]
[1738779241684,6.76964557,2725.5,2725.2,4.68520443]
[1738779241891,13.79681376,2725.7,2725.6,0.7336]
[1738779241892,5.58901376,2725.7,2725.6,0.7336]
[1738779242190,5.58901376,2725.7,2725.6,3.9414]
[1738779242389,5.58901376,2725.7,2725.6,8.61529886]
[1738779242788,5.58901376,2725.7,2725.6,49.41529886]
[1738779242982,8.79681376,2727.0,2726.5,0.73336]
[1738779243186,8.79681376,2727.0,2726.7,0.73329]
[1738779243394,8.79681376,2727.0,2726.6,4.86998243]
[1738779243580,8.79681376,2727.0,2726.4,3.2078]
[1738779243781,8.79681376,2727.0,2726.8,5.60324243]
[1738779243989,5.58901376,2727.0,2726.9,0.73325]
[1738779244192,5.58901376,2727.0,2726.9,5.4097992]
[1738779244388,5.58901376,2727.0,2726.9,18.11771815]
[1738779244588,10.58901376,2727.0,2726.6,0.00550398]
[1738779244895,17.35865933,2727.0,2726.6,0.00550398]
[1738779245089,13.79681376,2727.0,2726.7,5.4098492]
[1738779245288,6.76964557,2726.9,2726.7,4.6765492]
[1738779245481,13.79681376,2727.0,2726.7,4.6765492]
[1738779245688,6.76964557,2726.8,2726.6,0.00550398]
[1738779245894,9.97744557,2726.7,2726.6,0.00550398]
[1738779246398,14.97744557,2726.7,2726.6,0.00550398]
[1738779247399,14.97744557,2726.7,2725.9,0.73351]
[1738779247590,0.8543,2726.9,2725.8,0.73354]
[1738779247591,9.97744557,2726.3,2725.8,0.73354]
[1738779247890,6.76964557,2726.2,2726.0,4.77577094]
[1738779248091,6.76964557,2726.2,2725.8,4.77577094]
[1738779248092,6.76964557,2726.1,2725.6,0.3672]
[1738779248400,3.2078,2725.7,2725.1,3.21598134]
[1738779248693,6.76964557,2725.8,2725.7,4.77689958]
[1738779248995,6.77514955,2725.7,2725.2,4.43]
[1738779249197,6.76964557,2725.6,2724.9,3.575]
[1738779249393,6.76964557,2725.6,2725.0,0.73375]
[1738779249598,11.76964557,2725.6,2724.9,3.575]
[1738779249887,0.00550398,2725.7,2725.3,0.73368]
[1738779250091,0.00550398,2725.7,2725.5,0.73361]
[1738779250295,0.00550398,2725.7,2725.4,4.72016738]
[1738779250488,0.00550398,2725.7,2725.6,4.72016738]
[1738779250689,0.00550398,2725.7,2725.3,4.72016738]
[1738779250889,0.00550398,2725.7,2725.5,4.72016738]
[1738779251096,3.2078,2726.6,2725.6,3.2078]
[1738779251395,6.76964557,2726.1,2725.6,7.75978848]
[1738779251599,3.2078,2726.0,2725.6,8.49336848]
[1738779251898,3.2078,2726.5,2725.7,40.8]
[1738779252199,6.76964557,2726.3,2725.7,53.2391631]
[1738779252394,3.2078,2726.1,2725.8,0.73903398]
[1738779252591,6.76964557,2726.2,2725.9,0.73349]
[1738779252790,3.21330398,2726.4,2725.9,4.67937462]
[1738779253302,0.00550398,2726.4,2726.0,0.73347]
[1738779253501,0.00550398,2726.4,2726.0,0.73349]
[1738779253796,0.00550398,2726.4,2726.1,5.50864151]
[1738779254097,5.00550398,2726.4,2725.9,3.2078]
[1738779254299,0.00550398,2726.4,2726.3,3.94121]
[1738779254492,0.00550398,2726.4,2726.3,0.73341]
[1738779254797,0.00550398,2726.4,2726.3,18.79505308]
[1738779254994,5.58901376,2727.4,2727.3,0.73314]
[1738779255189,5.58901376,2727.4,2726.4,3.2078]
[1738779255400,6.76964557,2727.0,2726.4,3.2078]
[1738779255596,3.2078,2726.9,2726.8,4.86432641]
[1738779255899,3.2078,2726.9,2726.5,45.66432641]
[1738779255900,3.2078,2726.9,2726.6,4.86432641]
[1738779256092,0.00550398,2727.1,2726.8,5.59760641]
[1738779256300,0.00550398,2727.1,2726.8,4.86432641]
[1738779256500,0.00550398,2727.1,2727.0,0.73322]
[1738779256995,0.00550398,2727.1,2727.0,4.83549975]
[1738779257396,0.00550398,2727.1,2727.0,0.73322]
[1738779257602,3.2078,2727.7,2727.0,4.83970049]
[1738779257802,6.76964557,2727.4,2727.1,0.73318]
[1738779258102,6.76964557,2727.4,2727.2,4.83970049]
[1738779258299,3.2078,2727.3,2727.2,4.83970049]
[1738779258499,3.2078,2727.3,2727.1,4.71603966]
[1738779258699,3.2078,2727.3,2727.0,5.45475364]
[1738779258899,3.2078,2727.3,2727.0,0.00550398]
[1738779259094,0.00550398,2727.5,2727.2,4.71603966]
[1738779259406,3.2078,2728.3,2728.0,0.73294]
[1738779259699,3.2078,2728.3,2728.1,4.78188931]
[1738779260098,3.2078,2728.3,2728.0,0.73294]
[1738779260298,4.16882084,2728.6,2728.2,4.87275085]
[1738779260504,0.00550398,2728.4,2728.3,0.73286]
[1738779260802,0.00550398,2728.4,2728.3,5.60561085]
[1738779260999,0.00550398,2728.4,2728.3,4.87275085]
[1738779261201,0.00550398,2728.4,2728.3,5.60562085]
[1738779261405,0.00550398,2728.4,2728.3,13.81335264]
[1738779261599,14.98294955,2728.4,2728.3,4.78454657]
[1738779261997,14.98294955,2728.4,2727.7,3.575]
[1738779262299,3.2078,2728.1,2727.8,4.65508275]